Cogmind - Beta 10.2 @@@ ROGUE MODE // 2021.09.11 @ 17:20:04 Player: cavemonk Result: Self-destructed Performance ------------- Evolutions (3) 1500 Regions Visited (9) 1800 Robots Destroyed (139) 695 Value Destroyed (3355) 3355 Prototype IDs (42) 840 Alien Tech Used (0) 0 Bonus (-267) -267 TOTAL SCORE: 7923 Bonus ------- Follower Combat Kills 101 Aligned with FarCom 300 Friendly Fire -668 Cogmind --------- Core Integrity 668/700 Matter 121/300 Energy 2065/2150 System Corruption 0% Temperature Cool (0) Movement Hovering (30) Location -7/Lower Caves Parts ------- > --- POWER (1) -------- Light Angular Momentum Engine > --- PROPULSION (6) --- Aerolev Unit Aerolev Unit Aerolev Unit Aerolev Unit Aerolev Unit Improved Airjet > --- UTILITY (4) ------ Large Storage Unit Superbattery Advanced Signal Interpreter Improved Propulsion Shielding > --- WEAPON (2) ------- Heavy Rocket Launcher > --- INVENTORY (10) --- Improved Deuterium Engine Aerolev Unit Advanced Sensor Array Advanced Sensor Array Improved Field Recycling Unit (102) Cooled Particle Cannon Cooled Particle Cannon Peak State ------------ > --- POWER ------------ Light Angular Momentum Engine > --- PROPULSION ------- Aerolev Unit Aerolev Unit Aerolev Unit Aerolev Unit Aerolev Unit Improved Airjet > --- UTILITY ---------- Large Storage Unit Superbattery Advanced Signal Interpreter Improved Field Recycling Unit > --- WEAPON ----------- AWS/Gauss > --- INVENTORY -------- Aerolev Unit Advanced Sensor Array Advanced Signal Interpreter Improved Propulsion Shielding AWS/Thermal Cooled Particle Cannon Cooled Particle Cannon Heavy Rocket Launcher [Rating: 68] Favorites ----------- Power Reinforced Ion Engine Engine Reinforced Ion Engine Propulsion Light Treads Treads Light Treads Leg Aluminum Leg Wheel Wheel Hover Unit Aerolev Unit Flight Unit Improved Flight Unit Utility High-capacity Storage Unit Device Improved Heat Sink Storage High-capacity Storage Unit Processor Advanced Signal Interpreter Hackware Hacking Suite Protection Hardened Medium Armor Plating Weapon Advanced Beam Cannon Energy Gun EM Pulse Gun Energy Cannon Advanced Beam Cannon Ballistic Gun AWS/Gauss Ballistic Cannon Flak Cannon Launcher Missile Launcher Special Weapon Mining Laser Build | -11 -10 -10 -9 -9 -9 -8 -8 -7 -7 ------- Run | Scr Mat Min Mat Min Exi Min Mat Fac Low Slots Evolved 6 | . . . 2 . . . 2 2 . Power . | . . . . . . . . . . Propulsion 4 | . . . . . . . 2 2 . Utility 2 | . . . 2 . . . . . . Weapon . | . . . . . . . . . . Parts Attached 171 | 4 30 5 51 6 9 2 24 37 3 Power 11 | . 1 1 2 . 2 . 3 2 . Engine 11 | . 1 1 2 . 2 . 3 2 . Core . | . . . . . . . . . . Reactor . | . . . . . . . . . . Propulsion 44 | 2 8 1 13 . . . 12 8 . Treads 31 | 1 6 1 12 . . . 11 . . Leg . | . . . . . . . . . . Wheel 3 | 1 2 . . . . . . . . Hover 9 | . . . . . . . 1 8 . Flight 1 | . . . 1 . . . . . . Utility 66 | 1 15 3 22 1 5 . 4 14 1 Device 28 | 1 6 2 11 . 2 . 1 5 . Storage 14 | . 2 1 3 . 2 . 1 4 1 Processor 8 | . 3 . 1 1 . . . 3 . Hackware 2 | . 1 . 1 . . . . . . Protection 14 | . 3 . 6 . 1 . 2 2 . Artifact . | . . . . . . . . . . Weapon 50 | 1 6 . 14 5 2 2 5 13 2 Energy Gun 5 | 1 2 . . . . . . 1 1 Energy Cannon 22 | . 3 . 9 3 2 1 2 2 . Ballistic Gun 4 | . . . . . . . . 4 . Ballistic Cannon 8 | . . . . . . . 2 6 . Launcher 10 | . . . 5 2 . 1 1 . 1 Special Weapon 1 | . 1 . . . . . . . . Impact Weapon . | . . . . . . . . . . Slashing Weapon . | . . . . . . . . . . Piercing Weapon . | . . . . . . . . . . Special Melee Weapon . | . . . . . . . . . . Unidentified Prototypes 5 | . 1 . 1 . . . 1 2 . Parts Lost 1 | . . . . . . . 1 . . Power . | . . . . . . . . . . Propulsion . | . . . . . . . . . . Utility . | . . . . . . . . . . Weapon 1 | . . . . . . . 1 . . Highest Loss Streak 1 | . . . . . . . 1 . . Average Slot Usage (%) 93 | . 99 100 93 100 94 88 87 84 92 Engine 11 | . 14 14 11 11 11 11 9 7 7 Treads 25 | . 26 28 22 22 22 22 35 15 . Hover 1 | . . . . . . . . 25 46 Device 5 | . 8 5 4 11 8 11 2 3 3 Storage 17 | . 9 21 22 22 17 11 12 10 11 Processor 2 | . 6 . 3 . 2 . . 3 7 Protection 6 | . 2 . 7 11 10 11 9 2 7 Energy Cannon 19 | . 23 28 21 21 22 20 12 . . Ballistic Cannon 1 | . . . . . . . 5 7 . Naked Turns . | . . . . . . . . . . Heaviest Build 140 | 14 32 47 98 91 107 109 140 118 38 Greatest Support 89 | 20 40 40 43 40 40 40 89 89 68 Greatest Overweight (x) 2 | 1 1 1 2 2 2 2 2 1 . Average Overweight (x) 1 | . . . 1 2 1 2 1 . . Largest Inventory Capacity 40 | 6 10 16 20 20 40 24 32 38 10 Average Capacity 19 | 6 6 13 19 20 21 24 27 21 10 Most Carried 32 | 6 10 16 20 20 24 24 32 24 10 Average Carried 18 | 5 6 13 19 20 21 24 26 20 9 Final Capacity 24 | 6 10 16 20 20 24 24 24 10 10 Final Carried 24 | 5 9 16 20 20 24 24 24 10 7 Class Distribution -------------------- 58% | Hauler-Mutant 35% | Mutant 5% | Scavenger-Mutant Dominant Class ---------------- Mutant | -10/Materials Mutant | -10/Mines Hauler-Mutant | -9/Materials Hauler-Mutant | -9/Mines Hauler-Mutant | -9/Exiles Hauler-Mutant | -8/Mines Hauler-Mutant | -8/Materials Hauler-Mutant | -7/Factory Hauler-Mutant | -7/Lower Caves Resources | -11 -10 -10 -9 -9 -9 -8 -8 -7 -7 ----------- Run | Scr Mat Min Mat Min Exi Min Mat Fac Low Matter Collected 2120 | 240 278 60 696 95 130 20 267 334 . Remotely . | . . . . . . . . . . Salvage Created 4881 | 144 870 185 1766 648 . 42 848 378 . Parts 290 | 11 48 6 110 54 . 1 43 17 . Haulers Intercepted 13 | . 2 . 6 . . . 4 1 . Recyclers Shooed 5 | . 1 2 . . . . 2 . . Parts Field Recycled 2 | . . . . . . . . 2 . Retrieved Matter 134 | . . . . . . . . 134 . Parts Self-Destructed . | . . . . . . . . . . Prevented . | . . . . . . . . . . Kills | -11 -10 -10 -9 -9 -9 -8 -8 -7 -7 ------- Run | Scr Mat Min Mat Min Exi Min Mat Fac Low Combat Hostiles Destroyed 87 | . 16 1 32 23 . 1 9 5 . Melee 3 | . . . 2 1 . . . . . Guns 11 | . 6 . . . . . . 5 . Cannons 59 | . 7 1 26 16 . 1 8 . . AOE 13 | . 2 . 4 6 . . 1 . . Classes Destroyed 16 | 2 7 1 3 1 . 1 . 1 . Worker 6 | . 1 . 1 . . . 4 . . Builder 3 | . 1 . 2 . . . . . . Tunneler 8 | 3 . . 1 3 . . 1 . . Hauler 13 | . 2 . 6 . . . 4 1 . Recycler 6 | 1 1 . 1 . . . 2 1 . Mechanic 2 | . . 1 1 . . . . . . Operator 2 | . 2 . . . . . . . . Watcher 10 | . 3 . 4 . . . 2 1 . Swarmer 18 | . 3 . 7 8 . . . . . Grunt 50 | . 13 1 13 13 . . 6 4 . Brawler 1 | . . . 1 . . . . . . Duelist 3 | . . . 1 1 . . 1 . . Sentry 10 | . . . 10 . . . . . . Hunter 3 | . . . . . . 1 2 . . Programmer 1 | . . . . . . . . 1 . Assembled 1 | . . . . 1 . . . . . Thug 3 | . . 2 1 . . . . . . Best Kill Streak 9 | 2 6 1 9 6 . 1 4 3 . Combat Bots Only 7 | . 5 1 7 4 . 1 3 3 . Max Kills in Single Turn 6 | 1 2 1 6 4 . 1 1 1 . Gunslinging . | . . . . . . . . . . Exploded 4 | . 2 . 4 2 . . 1 . . Melee 1 | . . . 1 1 . . . . . Uniques/NPCs Destroyed . | . . . . . . . . . . Combat | -11 -10 -10 -9 -9 -9 -8 -8 -7 -7 -------- Run | Scr Mat Min Mat Min Exi Min Mat Fac Low Damage Taken 2938 | . 398 126 1088 436 . 64 513 263 50 Core 408 | . 63 38 135 91 . . 49 32 . Absorbed by Shields . | . . . . . . . . . . Core Remaining (%) 73 | 100 . 59 . . . 43 91 . . Volleys Fired 282 | 8 55 27 90 40 . 5 42 13 2 Largest 2 | 2 2 2 2 2 . 2 2 2 1 Hottest 136 | 80 136 136 136 136 . 136 136 88 39 Shots Fired 569 | 16 109 54 177 70 . 10 83 35 15 Gun 110 | 16 54 . . . . . . 27 13 Cannon 451 | . 54 54 176 67 . 10 82 8 . Launcher 7 | . . . 1 3 . . 1 . 2 Special 1 | . 1 . . . . . . . . Kinetic 51 | . . . . . . . 4 35 12 Thermal 441 | . 55 54 176 67 . 10 78 . 1 Explosive 7 | . . . 1 3 . . 1 . 2 Electromagnetic 70 | 16 54 . . . . . . . . Robot Hit Streak 11 | 5 10 7 11 10 . 5 9 10 4 Robot Miss Streak 5 | 3 4 2 3 3 . 1 5 5 3 Penetration Max . | . . . . . . . . . . Secondary Targets 2 | . . . . . . . . 2 . Max Gunslinging Chain 1 | . . . . . . . . 1 . Autonomous 22 | . . . . . . . . 9 13 Shots Hit Robots 359 | 10 63 30 110 40 . 8 61 29 8 Core Hits 178 | 4 30 10 54 29 . 2 33 14 2 Critical Hits 40 | . 5 3 19 5 . . 7 1 . Critical Kills 14 | . 1 . 8 3 . . 2 . . Critical Parts Destroyed 22 | . 4 3 7 2 . . 5 1 . Melee Attacks . | . . . . . . . . . . Impact . | . . . . . . . . . . Slashing . | . . . . . . . . . . Piercing . | . . . . . . . . . . Sneak Attacks . | . . . . . . . . . . Combat Hostiles . | . . . . . . . . . . Follow-up Attacks . | . . . . . . . . . . Damage Inflicted 8874 | 105 1322 659 2906 1283 . 141 1513 541 404 Guns 1281 | 105 453 . . . . . . 445 278 Cannons 5855 | . 793 624 2149 799 . 141 1253 96 . Explosions 1225 | . 69 . 519 412 . . 99 . 126 Melee . | . . . . . . . . . . Ramming 513 | . 7 35 238 72 . . 161 . . Kinetic 883 | . . . . . . . 91 541 251 Thermal 5894 | . 862 624 2279 799 . 141 1162 . 27 Explosive 1026 | . . . 389 412 . . 99 . 126 Electromagnetic 558 | 105 453 . . . . . . . . Impact . | . . . . . . . . . . Slashing . | . . . . . . . . . . Piercing . | . . . . . . . . . . Highest Corruption . | . . . . . . . . . . Average Corruption . | . . . . . . . . . . Corruption Purged . | . . . . . . . . . . Overload Shots . | . . . . . . . . . . Overflow Damage 133 | . 17 2 85 6 . . . . 23 Projectiles 43 | . 17 2 18 6 . . . . . Explosions 74 | . . . 51 . . . . . 23 Melee 16 | . . . 16 . . . . . . Knockbacks 5 | . . . 2 . . . 3 . . Impact 2 | . . . 2 . . . . . . Kinetic 3 | . . . . . . . 3 . . Secondary . | . . . . . . . . . . Self-Inflicted Damage 228 | . . . 36 63 . . 79 . 50 Shots 6 | . . . 2 2 . . 1 . 1 Rammed 47 | . 5 7 18 8 . . 8 1 . Targets Rammed 55 | . 6 7 21 8 . . 12 1 . Kicked . | . . . . . . . . . . Crushed 8 | . 1 . 3 . . . 4 . . Highest Temperature 516 | 54 327 261 516 291 . 255 495 83 . Average Temperature 108 | 22 84 84 132 83 . 130 121 29 . Received Heat Transfer 1035 | . 135 48 399 138 . . 198 117 . Effects 18 | . . 1 12 . . . 5 . . Shutdowns 4 | . . . 3 . . . 1 . . Energy Bleed 3 | . . 1 2 . . . . . . Interference 6 | . . . 5 . . . 1 . . Short Circuit 2 | . . . 1 . . . 1 . . Damage (minor) 1 | . . . 1 . . . . . . Damage (major) 2 | . . . . . . . 2 . . Siege Activations . | . . . . . . . . . . Robots Corrupted . | . . . . . . . . . . Combat Hostiles . | . . . . . . . . . . Parts Fried 2 | . 2 . . . . . . . . Impact Corruptions 3 | . . . 3 . . . . . . Robots Melted 1 | . 1 . . . . . . . . Combat Hostiles 1 | . 1 . . . . . . . . Parts Melted 13 | . 1 . 4 2 . 3 3 . . Heat Transferred 10153 | . 1469 1110 3874 1332 . 259 2072 . 37 Parts Sabotaged . | . . . . . . . . . . Parts Stolen 2 | . . . . . . . . . 2 Parts Stripped . | . . . . . . . . . . Power Chain Reactions 1 | . 1 . . . . . . . . Missiles Intercepted . | . . . . . . . . . . Alert | -11 -10 -10 -9 -9 -9 -8 -8 -7 -7 ------- Run | Scr Mat Min Mat Min Exi Min Mat Fac Low Peak Influence 529 | 20 266 105 373 285 . 30 179 529 . Initial 79 | . 13 73 15 79 . . 11 40 . Average 131 | 11 127 39 168 152 . 23 72 243 . Maximum Alert Level 2 | . 1 . 1 1 . . . 2 . Low Security (%) 75 | 100 76 100 60 72 . 100 100 43 . Level 1 24 | . 23 . 39 27 . . . 50 . Level 2 . | . . . . . . . . 6 . Level 3 . | . . . . . . . . . . Level 4 . | . . . . . . . . . . Level 5 . | . . . . . . . . . . High Security . | . . . . . . . . . . Max Security . | . . . . . . . . . . Squads Dispatched 12 | . 5 1 3 . . . . 3 . Investigation 5 | . 3 . 1 . . . . 1 . Extermination 1 | . . . . . . . . 1 . Reinforcement 5 | . 2 . 2 . . . . 1 . Assault 1 | . . 1 . . . . . . . Garrison . | . . . . . . . . . . Intercept . | . . . . . . . . . . Construction Impeded . | . . . . . . . . . . Haulers Reinforced 1 | . . . . . . . . 1 . Stealth | -11 -10 -10 -9 -9 -9 -8 -8 -7 -7 --------- Run | Scr Mat Min Mat Min Exi Min Mat Fac Low Distress Signals 7 | . 2 . 3 2 . . . . . Communications Jammed . | . . . . . . . . . . Distress Signals . | . . . . . . . . . . Times Spotted 139 | . 25 9 54 24 . 1 16 7 3 Peak Tracking Total 6 | . 4 4 6 4 . 1 3 3 2 Tactical Retreats 11 | . 3 1 3 2 . . . 2 . Traps | -11 -10 -10 -9 -9 -9 -8 -8 -7 -7 ------- Run | Scr Mat Min Mat Min Exi Min Mat Fac Low Traps Triggered 8 | . 3 1 1 . . . . 3 . Indirectly . | . . . . . . . . . . Trap Hack Attempts . | . . . . . . . . . . Triggered . | . . . . . . . . . . Disarmed . | . . . . . . . . . . Reprogrammed . | . . . . . . . . . . Reused . | . . . . . . . . . . Traps Extracted . | . . . . . . . . . . Installed . | . . . . . . . . . . Triggered . | . . . . . . . . . . Machines | -11 -10 -10 -9 -9 -9 -8 -8 -7 -7 ---------- Run | Scr Mat Min Mat Min Exi Min Mat Fac Low Machines Disabled 7 | . 1 . 4 1 . . 1 . . Max in Single Turn 3 | . 1 . 3 1 . . 1 . . Machines Sabotaged . | . . . . . . . . . . Garrisons Compromised . | . . . . . . . . . . Overloaded Fab Kills . | . . . . . . . . . . Fab Network Shutdowns 1 | . . . . . . . . 1 . Hacking | -11 -10 -10 -9 -9 -9 -8 -8 -7 -7 --------- Run | Scr Mat Min Mat Min Exi Min Mat Fac Low Machines Accessed 37 | . 8 1 15 2 1 . 6 4 . Terminals 22 | . 5 . 9 2 . . 4 2 . Fabricators 1 | . . . . . . . . 1 . Repair Stations 4 | . 1 . 2 . . . 1 . . Recycling Units 4 | . 2 . 2 . . . . . . Scanalyzers 4 | . . . 2 . . . 1 1 . Garrison Access . | . . . . . . . . . . Total Hacks 122 | . 23 1 50 7 1 . 30 10 . Successful 73 | . 10 1 31 3 1 . 20 7 . Failed 47 | . 12 . 18 4 . . 10 3 . Catastrophic 11 | . 4 . 4 2 . . . 1 . Database Lockouts 2 | . 1 . 1 . . . . . . Manual 60 | . 16 . 22 7 1 . 14 . . Terminals 74 | . 17 . 31 7 . . 15 4 . Fabricators 5 | . . . . . . . . 5 . Repair Stations 11 | . 3 . 3 . . . 5 . . Recycling Units 8 | . 3 . 5 . . . . . . Scanalyzers 22 | . . . 11 . . . 10 1 . Garrison Access . | . . . . . . . . . . Terminal Hacks 27 | . 4 1 11 3 1 . 5 2 . Robot Analysis 4 | . 2 . . . . . 2 . . Prototype ID Bank 7 | . 1 . 3 2 . . . 1 . Open Door 1 | . . 1 . . . . . . . Branch Access Points 1 | . . . 1 . . . . . . Terminal Index 2 | . . . 1 . . . 1 . . Unreport Threat 3 | . . . 3 . . . . . . Locate Traps 3 | . . . 2 . . . 1 . . Hauler Manifests 2 | . . . 1 . . . 1 . . Registered Components 1 | . . . . . . . . 1 . Zone Layout 2 | . 1 . . 1 . . . . . EX-Prototype ID Bank 1 | . . . . . 1 . . . . Fabricator Hacks 5 | . . . . . . . . 5 . Load Schematic 2 | . . . . . . . . 2 . Build 3 | . . . . . . . . 3 . Repair Station Hacks 6 | . 2 . 1 . . . 3 . . Scan Component 4 | . 1 . 1 . . . 2 . . Repair 2 | . 1 . . . . . 1 . . Recycling Unit Hacks 3 | . . . 3 . . . . . . Retrieve Matter 1 | . . . 1 . . . . . . Retrieve Components 2 | . . . 2 . . . . . . Scanalyzer 21 | . . . 11 . . . 10 . . Insert Component 9 | . . . 5 . . . 4 . . Analyze 12 | . . . 6 . . . 6 . . Garrison Access Hacks . | . . . . . . . . . . Unauthorized Hacks 11 | . 4 . 5 . . . 2 . . Terminals 9 | . 2 . 5 . . . 2 . . Track 3 | . 1 . 2 . . . . . . Assimilate 1 | . . . 1 . . . . . . Botnet 2 | . . . 1 . . . 1 . . Disrupt 3 | . 1 . 1 . . . 1 . . Fabricators . | . . . . . . . . . . Repair Stations . | . . . . . . . . . . Recycling Units 2 | . 2 . . . . . . . . Tunnel 2 | . 2 . . . . . . . . Scanalyzers . | . . . . . . . . . . Garrison Access . | . . . . . . . . . . Data Cores Recovered . | . . . . . . . . . . Used . | . . . . . . . . . . Hacking Detections 32 | . 7 . 14 2 . . 6 3 . Full Trace Events 1 | . 1 . . . . . . . . Feedback Events . | . . . . . . . . . . Feedback Blocked . | . . . . . . . . . . Robot Schematics Acquired . | . . . . . . . . . . Robots Built . | . . . . . . . . . . Matter . | . . . . . . . . . . Time . | . . . . . . . . . . Total Robot Build Rating . | . . . . . . . . . . Part Schematics Acquired 8 | . . . 4 . . . 4 . . Parts Built 3 | . . . . . . . . 3 . Matter 540 | . . . . . . . . 540 . Time 283 | . . . . . . . . 283 . Total Part Build Rating 7 | . . . . . . . . 7 . Parts Repaired 2 | . 1 . . . . . 1 . . Time 52 | . 26 . . . . . 26 . . Parts Recycled . | . . . . . . . . . . Recycled Matter . | . . . . . . . . . . Retrieved Matter . | . . . . . . . . . . Retrieved Components 10 | . . . 10 . . . . . . Parts Scanalyzed 9 | . . . 5 . . . 4 . . Part Schematics Acquired 8 | . . . 4 . . . 4 . . Parts Damaged . | . . . . . . . . . . Bothacking | -11 -10 -10 -9 -9 -9 -8 -8 -7 -7 ------------ Run | Scr Mat Min Mat Min Exi Min Mat Fac Low Used RIF Installer . | . . . . . . . . . . Robots Hacked . | . . . . . . . . . . Non-combat . | . . . . . . . . . . Combat . | . . . . . . . . . . Robot Hacks Applied . | . . . . . . . . . . Relay Couplers Released . | . . . . . . . . . . Robots Rewired . | . . . . . . . . . . Allies Hacked . | . . . . . . . . . . Hacks Repelled . | . . . . . . . . . . Allies | -11 -10 -10 -9 -9 -9 -8 -8 -7 -7 -------- Run | Scr Mat Min Mat Min Exi Min Mat Fac Low Total Allies 5 | . . 1 1 3 . . . . . Largest Group 2 | . . 1 1 2 . . . . . Highest-Rated Group 41 | . . 31 10 41 . . . . . Highest-Rated Ally 31 | . . 31 10 31 . . . . . Total Orders . | . . . . . . . . . . Ally Attacks 14 | . . 10 . 4 . . . . . Total Damage 188 | . . 146 . 42 . . . . . Kills 3 | . . 3 . . . . . . . Allies Corrupted . | . . . . . . . . . . Allies Melted . | . . . . . . . . . . Intel | -11 -10 -10 -9 -9 -9 -8 -8 -7 -7 ------- Run | Scr Mat Min Mat Min Exi Min Mat Fac Low Robot Analysis Total 4 | . 2 . . . . . 2 . . Derelict Logs Recovered 3 | . . 1 . 2 . . . . . Drone Launches . | . . . . . . . . . . Drone Recoveries . | . . . . . . . . . . Exploration | -11 -10 -10 -9 -9 -9 -8 -8 -7 -7 ------------- Run | Scr Mat Min Mat Min Exi Min Mat Fac Low Turns Passed 13220 | 92 1477 1426 4596 1165 1102 89 2341 914 18 Spaces Moved 6230 | 25 800 745 1897 509 540 36 1014 631 33 Core . | . . . . . . . . . . Treads 5635 | 11 677 745 1897 509 540 36 1014 206 . Legs . | . . . . . . . . . . Wheels 137 | 14 123 . . . . . . . . Hover 458 | . . . . . . . . 425 33 Flight . | . . . . . . . . . . Fastest Speed 30 | 90 90 160 180 200 180 200 180 30 30 Average Speed 176 | 120 149 170 194 200 199 200 185 116 30 Slowest Speed 200 | 160 160 180 200 200 200 200 200 180 30 Overloaded Moves . | . . . . . . . . . . Propulsion Burnouts . | . . . . . . . . . . Robots Hopped . | . . . . . . . . . . Cave-ins Triggered . | . . . . . . . . . . Exploration Rate (%) 54 | 4 88 99 95 93 78 16 52 9 12 Regions Visited 9 Branch Regions 5 Pre-discovered Areas 2 | . 2 . . . . . . . . Known Exits Taken 4 | . . . 1 1 . 1 . 1 . Unknown Exits Taken 5 | 1 1 1 . . 1 . 1 . . Scrap Searched 2 | . . 2 . . . . . . . Spaces Dug 21 | . 1 . . 10 . . 10 . . Terrain Destroyed 154 | . 7 . 42 33 . . 45 4 23 Melee . | . . . . . . . . . . Projectile 12 | . 1 . . . . . 1 4 6 AOE 142 | . 6 . 42 33 . . 44 . 17 Terrain Rammed . | . . . . . . . . . . Walls Destroyed . | . . . . . . . . . . Machines Disabled . | . . . . . . . . . . Actions | -11 -10 -10 -9 -9 -9 -8 -8 -7 -7 --------- Run | Scr Mat Min Mat Min Exi Min Mat Fac Low Total 7922 | 71 965 847 2620 575 567 43 1393 803 38 Wait 907 | 27 45 32 481 13 . 1 253 55 . Move 6221 | 24 799 744 1896 508 539 35 1013 630 33 Hop . | . . . . . . . . . . Pick Up 110 | 3 12 18 31 . 7 . 19 20 . Fast Attach 49 | 2 15 . 7 . 4 . 6 15 . Attach 43 | 1 3 . 8 . 5 . 4 20 2 Detach 10 | . . . 2 . 2 . 2 4 . Swap 79 | 1 12 5 36 6 . 2 14 2 1 Drop 166 | 5 18 14 48 . 10 . 28 43 . Fire 282 | 8 55 27 90 40 . 5 42 13 2 Melee . | . . . . . . . . . . Ram . | . . . . . . . . . . Kick . | . . . . . . . . . . Crush 55 | . 6 7 21 8 . . 12 1 . Escape Stasis . | . . . . . . . . . . Rewire . | . . . . . . . . . . Trap . | . . . . . . . . . . Miscellaneous . | . . . . . . . . . . Route ------- -11/Scrapyard -10/Materials (discovered 4 exits: *Mat x3 / *Min) -10/Mines (discovered 2 exits: *Mat x2) -9/Materials (discovered 4 exits: *Mat x3 / *Min) -9/Mines (discovered 3 exits: *Mat x2 / *Exi) -9/Exiles -8/Mines -8/Materials (discovered 2 exits: *Fac x2) -7/Factory -7/Lower Caves History --------- Turn | Location | Event 5 | -11/Scrapyard | Discovered new exit (range 2) 93 | -11/Scrapyard | Entered Materials 202 | -10/Materials | Discovered new exit (range 16) 328 | -10/Materials | Build established: Mutant 483 | -10/Materials | Discovered new exit (range 16) 785 | -10/Materials | Repaired Lgt. Treads 873 | -10/Materials | Discovered new exit (range 8) 901 | -10/Materials | Central database locked down 1001 | -10/Materials | Discovered new exit (range 15) 1570 | -10/Materials | Entered Mines 1571 | -10/Mines | Met a Derelict testing a Signal Generator 1572 | -10/Mines | Met a Derelict bent on vengeance 1614 | -10/Mines | Learned Materials stockpile data 2764 | -10/Mines | Discovered new exit (range 16) 2872 | -10/Mines | Met a Derelict who couldn't figure out how to use a Trap Extractor 2976 | -10/Mines | Discovered new exit (range 12) 2996 | -10/Mines | Entered Materials 2996 | -9/Materials | Evolved 2 slots: Utility x2 3305 | -9/Materials | Identified exit to Mines 4392 | -9/Materials | Discovered new exit (range 10) 4681 | -9/Materials | Destroyed 7 combat bots 4768 | -9/Materials | Build established: Hauler-Mutant 4962 | -9/Materials | Discovered new exit (range 16) 5040 | -9/Materials | Central database locked down 6758 | -9/Materials | Discovered new exit (range 10) 7592 | -9/Materials | Entered Mines 7672 | -9/Mines | Excavation squad dispatched 7672 | -9/Mines | A large section of the Mines collapsed 7922 | -9/Mines | Excavation squad dispatched 8099 | -9/Mines | Core integrity fell below 50% 8102 | -9/Mines | Identified exit to Materials 8172 | -9/Mines | Excavation squad dispatched 8258 | -9/Mines | Discovered exit to Materials (range 9) 8259 | -9/Mines | Received a Mining Laser from a helpful Derelict 8581 | -9/Mines | Learned 2 Materials zone layouts 8741 | -9/Mines | Discovered new exit (range 7) 8757 | -9/Mines | Identified exit to Exiles 8757 | -9/Mines | Entered Exiles 8807 | -9/Exiles | Met 8R-AWN 8839 | -9/Exiles | Met EX-HEX 8893 | -9/Exiles | Met EX-BIN 8923 | -9/Exiles | Aligned with FarCom system 8925 | -9/Exiles | Given EX-Vault access code 8973 | -9/Exiles | Opened EX-Vault 8989 | -9/Exiles | Found AWS/Gauss 8994 | -9/Exiles | Found AWS/Thermal 9007 | -9/Exiles | Found Superbattery 9050 | -9/Exiles | Warned to stay clear of 0b10 Research branches 9108 | -9/Exiles | Met EX-DEC 9197 | -9/Exiles | Visited The Gauntlet 9835 | -9/Exiles | Discovered new exit (range 14) 9859 | -9/Exiles | Stole three prototypes: Superbattery, AWS/Thermal, AWS/Gauss 9859 | -9/Exiles | Entered Mines 9928 | -8/Mines | Discovered exit to Materials (range 11) 9948 | -8/Mines | Entered Materials 9948 | -8/Materials | Evolved 2 slots: Propulsion x2 10260 | -8/Materials | Build established: Scavenger-Mutant 10451 | -8/Materials | Repaired Lgt. Treads 10948 | -8/Materials | Build established: Hauler-Mutant 11135 | -8/Materials | Discovered new exit (range 12) 11388 | -8/Materials | Discovered new exit (range 16) 12289 | -8/Materials | Entered Factory 12289 | -7/Factory | Evolved 2 slots: Propulsion x2 12291 | -7/Factory | FarCom data flow suspended 12432 | -7/Factory | Fabricated Aerolev Unit? 12597 | -7/Factory | Fabricated Aerolev Unit (x1) 12652 | -7/Factory | Fabricated Hcp. Storage Unit? 12683 | -7/Factory | Local fabrication network quarantined 13147 | -7/Factory | Build established: Mutant 13169 | -7/Factory | Discovered new exit (range 9) 13177 | -7/Factory | Identified exit to Lower Caves 13203 | -7/Factory | Entered Lower Caves 13203 | -7/Lower Caves | Spotted ZJ-Y2J(f) 13204 | -7/Lower Caves | Encountered a Master Thief 13205 | -7/Lower Caves | Spotted B6-TZ8(f) 13206 | -7/Lower Caves | Encountered a Master Thief 13215 | -7/Lower Caves | AWS/Gauss stolen by Master Thief 13216 | -7/Lower Caves | AWS/Thermal stolen by Master Thief 13221 | -7/Lower Caves | Self-destructed Last Messages --------------- 13197_ Discarded Adv. Signal Interpreter. 13199_ Acquired Imp. Weapon Shielding. 13200_ Dropped Imp. Weapon Shielding. 13202_ Acquired Adv. Sensor Array. LOCATION=LOWER CAVES GOAL=ESCAPE 13204_ ZJ-Y2J(f): "Someone's put a hefty bounty on whatever we can steal from you!" 13204_ Slug penetrates ZJ-Y2J(f). 13204_ Destroyed Mak. Cloaking Device. 13205_ Slug penetrates Wall. 13206_ Slug penetrates ZJ-Y2J(f). 13206_ Slug penetrates Wall. 13212_ Slug penetrates ZJ-Y2J(f). 13212_ Destroyed Maneuvering Thrusters. 13213_ Slug penetrates Wall. 13215_ Slug penetrates ZJ-Y2J(f). 13215_ AWS/Gauss ripped off. 13216_ AWS/Thermal ripped off. 13217_ Destroyed Nanoactuators. Map ----- +----------------------------------------------------+ | ?????????????????????????????????????????????????? | | ?????????????????????????????????????????????????? | | ?????????????????????????????????????????????????? | | ?????????????????????????????????????????????????? | | ?????????????????????????????????????????????????? | | ?????????????????????????????????????????????????? | | ?????????????????????????????????????????????????? | | ?????????????????????????????????????????????????? | | ?????????????????????????????????????????????????? | | ?????????????????????????????????????????????????? | | ????????????????????????????? ???????????????##?## | | ????????????????????????????? ???????????????? ## | | ???????????????????????????? ????????????????"" | | ???????????????????????????? #??????????#???## | | ???????????????????????????? ??????????# ### | | ???????????????????????????# ????????### | | ??????????????????????????? ##?????## #### # | | ??????????????????????????? #????## #??### # | | ???????????????????????????? ##??## ##???# # | | ???????????????????????????? ##?# ##### # | | ?????????????????????????????# # ## # | | ???????????????????????###### ## " | | ??????????????????????## # # | | ??????????????????????# | | ????????????????# ## ## | | ?????????????????# @ ### | | ?????????????????# ## | | ?????????????????# ## | | ?????????????????????# " " ####### | | ?????????????????????#" "" """" #?????? | | ????????????????????#" """ ""# ## #????? | | ????????????????????" "" ## ### #???? | | ??????????????????? """"" "## #?## #???? | | ?????????????????? " $ "## #??# ## ??? | | ?????????????????? ?$ #? ##?## ? | | ????????????????? ??? ? # #???? | | ???????????????? #???? ## #### ???? | | ??????????????????#?????##??# #??## ##???? | | ????????????????????????????# ????## #?????### | | ????????????????????????????## #?????# #???????? | | ?????????????????????????????##??????#$ #????????? | | ????????????????????????????????????? #????????? | | ????????????????????????????????????? ????????? | | ?????????????????????????????????????? ?????????? | | ?????????????????????????????????????????????????? | | ?????????????????????????????????????????????????? | | ?????????????????????????????????????????????????? | | ?????????????????????????????????????????????????? | | ?????????????????????????????????????????????????? | | ?????????????????????????????????????????????????? | +----------------------------------------------------+ Best States ------------- Heat Dissipation 45 Energy Generation 18 Energy Capacity 2150 Matter Stores 300 Matter Capacity 300 Sight Range 16 Robot Scan Range 16 Terrain Scan Range 16 Terrain Scan Density 10 Armor Coverage 600 Propulsion Shielding 66 Evasion (%) 59 Targeting Accuracy 12 Recoil Reduction 4 Offensive Hacking 10 Item Schematics ----------------- Adv. Sensor Array | -9/Materials | Scanalyzed Hcp. Storage Unit | -9/Materials | Scanalyzed Hacking Suite | -9/Materials | Scanalyzed Missile Launcher | -9/Materials | Scanalyzed Hvy. Armor Plating | -8/Materials | Scanalyzed Imp. Signal Interpreter | -8/Materials | Scanalyzed Aerolev Unit | -8/Materials | Scanalyzed Lgt. Angular Momentum Engine | -8/Materials | Scanalyzed Robot Schematics ------------------ None Fabricated ------------ Aerolev Unit | x1 | -7/Factory Aerolev Unit | x1 | -7/Factory Hcp. Storage Unit | x1 | -7/Factory Alien Tech Used ----------------- None Achievements -------------- None Challenges ------------ None Game ------ Seed DirtyCoolingBlaster Manual? 0 Play Time 01:36:11 Cumulative 274.4 hours Start 2021.09.11 @ 15:41:02 End 2021.09.11 @ 17:20:04 Sessions 1 Manual Loads 0 Difficulty Rogue Special Mode None Game No. 202 Rogue 202 Adventurer 0 Explorer 0 Win Type - Total 5 Types 5/0/0/0/0/0/0/0/0 Lore% 51 Gallery% 73 Achievement% 58 Wizard Run 0 Options --------- ASCII 0 Keyboard 0 Movement Numpad Keybinds 0 Fullscreen 2 Font 18/TerminusBold Map View 76x50 Tactical HUD 1 Map Filters NONE Filters NONE Steam 1 RUN: 1968feae-6995-4f79-b6b7-038c42257948